bitfinex/quotes_ETHUSD_20230110
["timestamp","ask_amount","ask_price","bid_price","bid_amount"]
[1673388377508,2.36545952,1338.5,1338.4,28.42183056]
[1673388377719,1.24766424,1338.5,1338.4,28.42183056]
[1673388377976,2.3655922,1338.5,1338.4,28.42183056]
[1673388378185,1.24766424,1338.5,1338.4,28.42183056]
[1673388378395,2.36559547,1338.5,1338.4,20.95023056]
[1673388378715,1.24766424,1338.5,1338.4,20.95023056]
[1673388378877,2.36559357,1338.5,1338.4,20.95023056]
[1673388379090,1.24766424,1338.5,1338.4,20.95023056]
[1673388379504,2.36557868,1338.5,1338.4,20.95023056]
[1673388379870,2.36560179,1338.5,1338.4,20.95023056]
[1673388380080,1.24766424,1338.5,1338.4,20.95023056]
[1673388380456,2.36559615,1338.5,1338.4,20.95023056]
[1673388380668,2.36558577,1338.5,1338.4,20.95023056]
[1673388381022,1.24766424,1338.5,1338.4,28.42183056]
[1673388381184,1.24766424,1338.5,1338.4,20.95023056]
[1673388381397,2.36573901,1338.5,1338.4,20.95023056]
[1673388381609,2.36574565,1338.5,1338.4,22.06944271]
[1673388381820,1.24766424,1338.5,1338.4,20.95023056]
[1673388382377,2.3657256,1338.5,1338.4,20.95023056]
[1673388382580,1.24766424,1338.5,1338.4,20.95023056]
[1673388382791,2.36570629,1338.5,1338.4,20.95023056]
[1673388383010,2.36571571,1338.5,1338.4,20.95023056]
[1673388383316,1.24766424,1338.5,1338.4,20.95023056]
[1673388383504,2.36571379,1338.5,1338.4,20.95023056]
[1673388383706,1.24766424,1338.5,1338.4,20.95023056]
[1673388383919,2.36571484,1338.5,1338.4,20.95023056]
[1673388384145,2.36582737,1338.5,1338.4,20.95023056]
[1673388384358,1.24766424,1338.5,1338.4,20.95023056]
[1673388384549,2.36584972,1338.5,1338.4,20.95023056]
[1673388384777,1.24766424,1338.5,1338.4,20.95023056]
[1673388385105,1.24766424,1338.5,1338.4,42.56420084]
[1673388385440,1.24766424,1338.5,1338.4,51.14327294]
[1673388385441,1.11766424,1338.5,1338.4,51.14327294]
[1673388385598,1.11766424,1338.5,1338.4,47.228872]
[1673388385946,1.11766424,1338.5,1338.4,48.34903371]
[1673388386501,1.11766424,1338.5,1338.4,48.12322752]
[1673388387534,1.11766424,1338.5,1338.4,49.24146675]
[1673388387775,1.11766424,1338.5,1338.4,48.12323167]
[1673388387909,1.11766424,1338.5,1338.4,48.12320933]
[1673388388590,1.11766424,1338.5,1338.4,47.00306581]
[1673388388974,1.11766424,1338.5,1338.4,48.12295656]
[1673388389180,1.11766424,1338.5,1338.4,47.00306581]
[1673388389513,1.11766424,1338.5,1338.4,49.24146675]
[1673388391819,1.11766424,1338.5,1338.4,47.00306581]
[1673388392580,1.11766424,1338.5,1338.4,48.12216188]
[1673388393862,1.11766424,1338.5,1338.4,47.00306581]
[1673388394697,1.11766424,1338.5,1338.4,47.74746581]
[1673388396042,1.11766424,1338.5,1338.4,48.86613132]
[1673388398605,1.11766424,1338.5,1338.4,47.74746581]
[1673388399027,1.11766424,1338.5,1338.4,48.86597823]
[1673388399406,1.11766424,1338.5,1338.4,47.74746581]
[1673388400597,1.11766424,1338.5,1338.4,48.86583406]
[1673388400806,1.11766424,1338.5,1338.4,47.74746581]
[1673388402483,1.11766424,1338.5,1338.4,49.98586675]
[1673388405217,1.11766424,1338.5,1338.4,47.74746581]
[1673388406919,1.11766424,1338.5,1338.4,49.98586675]
[1673388407818,1.11766424,1338.5,1338.4,47.74746581]
[1673388408039,1.11766424,1338.5,1338.4,49.98586675]
[1673388408299,1.11766424,1338.5,1338.4,47.74746581]
[1673388408458,4.24e-06,1338.5,1338.4,49.98586675]
[1673388408671,0.5605,1338.7,1338.5,2.5]
[1673388408986,0.5605,1338.7,1338.6,25.45847]
[1673388409197,9.0975,1338.8,1338.6,30.15972984]
[1673388409468,9.0435,1338.8,1338.6,28.30556589]
[1673388411022,9.0435,1338.8,1338.6,29.98156589]
[1673388411207,9.0435,1338.8,1338.7,2.99815659]
[1673388411416,9.0435,1338.8,1338.7,25.40794659]
[1673388411671,9.0435,1338.8,1338.7,25.47394659]
[1673388412034,0.012,1338.8,1338.7,25.47394659]
[1673388412248,0.5604,1338.9,1338.7,25.47394659]
[1673388414168,2.23688059,1338.9,1338.7,25.47394659]
[1673388414348,0.5604,1338.9,1338.8,2.54739466]
[1673388414560,0.5604,1338.9,1338.8,24.95550466]
[1673388414774,0.5604,1338.9,1338.8,25.02150466]
[1673388415134,0.5604,1338.9,1338.8,17.55213466]
[1673388416131,0.5604,1338.9,1338.8,10.08276466]
[1673388417642,17.86286167,1339.0,1338.8,28.8191653]
[1673388417814,17.80886167,1339.0,1338.9,25.28834653]
[1673388418023,17.80886167,1339.0,1338.9,25.35434653]
[1673388418450,16.13238108,1339.0,1338.9,25.35434653]
[1673388418651,7.35088108,1339.0,1338.9,25.35434653]
[1673388419731,9.02736167,1339.0,1338.9,25.35434653]
[1673388420128,7.35088108,1339.0,1338.9,25.35434653]
[1673388421330,7.35088108,1339.0,1338.9,2.94791653]
[1673388421544,7.35088108,1339.0,1338.9,7.46881]
[1673388421755,7.35088108,1339.0,1338.9,15.00362]
[1673388422706,7.35088108,1339.0,1338.9,7.53481]
[1673388423072,7.35088108,1339.0,1338.9,15.00362]
[1673388423634,9.02736167,1339.0,1338.9,15.00362]
[1673388424021,9.02736167,1339.0,1338.9,7.53481]
[1673388426433,9.02736167,1339.0,1338.9,15.00362]
[1673388426685,9.02736167,1339.0,1338.9,7.53481]
[1673388428166,9.02736167,1339.0,1338.9,0.066]
[1673388428380,9.02736167,1339.0,1338.8,10.08237466]
[1673388428536,9.02736167,1339.0,1338.9,1.00823747]
[1673388428746,9.02736167,1339.0,1338.9,3.50823747]
[1673388428958,9.02736167,1339.0,1338.9,15.94585747]
[1673388429169,9.02736167,1339.0,1338.9,23.48066747]
[1673388429643,9.02736167,1339.0,1338.9,0.066]
[1673388429858,9.02736167,1339.0,1338.8,15.0042]
[1673388430016,9.02736167,1339.0,1338.9,7.46881]
[1673388430218,9.02736167,1339.0,1338.9,7.53481]
[1673388430653,9.02736167,1339.0,1338.9,0.066]
[1673388430866,9.02736167,1339.0,1338.8,0.066]
[1673388431079,9.02736167,1339.0,1338.7,20.62468463]
[1673388431338,9.02736167,1339.0,1338.8,14.93855]
[1673388431527,9.02736167,1339.0,1338.8,26.27158064]
[1673388432785,7.35088108,1339.0,1338.8,26.27158064]
[1673388433341,9.02736167,1339.0,1338.8,26.27158064]
[1673388433494,9.02736167,1339.0,1338.9,2.5]
[1673388433701,9.02736167,1339.0,1338.9,27.78337142]
[1673388433926,9.02736167,1339.0,1338.9,27.84937142]
[1673388435741,9.02736167,1339.0,1338.9,25.34937142]
[1673388439338,9.02736167,1339.0,1338.9,29.14703206]
[1673388439715,7.35088108,1339.0,1338.9,29.14703206]
[1673388439924,9.02736167,1339.0,1338.9,29.14703206]
[1673388440343,7.35088108,1339.0,1338.9,29.14703206]
[1673388440594,7.35088108,1339.0,1338.9,31.00045628]
[1673388441632,7.35088108,1339.0,1338.9,29.14703206]
[1673388444292,4.26200292,1339.0,1338.9,31.00042059]
[1673388444592,4.25000292,1339.0,1338.9,33.78050938]
[1673388445400,4.25000292,1339.0,1338.9,31.00042059]
[1673388446243,4.25000292,1339.0,1338.9,29.14703206]
[1673388446681,4.25000292,1339.0,1338.9,31.00039518]
[1673388446861,4.25000292,1339.0,1338.9,30.95039518]
[1673388447325,4.25000292,1339.0,1338.9,29.09703206]
[1673388447832,4.25000292,1339.0,1338.9,30.95042174]
[1673388448441,4.25000292,1339.0,1338.9,30.95041984]
[1673388448848,4.25000292,1339.0,1338.9,29.09703206]
[1673388449068,4.25000292,1339.0,1338.9,30.95042008]
[1673388451844,4.25000292,1339.0,1338.9,30.95042517]
[1673388452215,4.25000292,1339.0,1338.9,29.09703206]
[1673388452427,4.25000292,1339.0,1338.9,30.95040684]
[1673388452647,4.25000292,1339.0,1338.9,29.09703206]
[1673388453742,4.25000292,1339.0,1338.9,30.95042738]
[1673388454381,5.36661379,1339.0,1338.9,30.95042738]
[1673388454736,5.37861379,1339.0,1338.9,30.95042738]
[1673388455629,5.37861379,1339.0,1338.9,30.95044282]
[1673388455953,4.26200292,1339.0,1338.9,30.95044282]
[1673388456163,4.25000292,1339.0,1338.9,30.95044282]
[1673388457470,5.36661379,1339.0,1338.9,30.95044282]
[1673388457620,5.37861379,1339.0,1338.9,30.95044282]
[1673388459102,5.93848351,1339.0,1338.9,7.53481]
[1673388459311,7.05501513,1339.0,1338.9,7.53481]
[1673388460248,7.05501513,1339.0,1338.9,0.066]
[1673388460454,7.05501513,1339.0,1338.9,7.46881]
[1673388460746,7.05501513,1339.0,1338.9,7.53481]
[1673388461407,21.43279359,1339.0,1338.9,0.066]
[1673388461614,9.38350517,1339.0,1338.7,3.0]
[1673388461865,1.1164333,1338.9,1338.7,14.26738064]
[1673388462034,1.1164333,1338.9,1338.7,17.11391245]
[1673388462244,2.79116503,1338.9,1338.7,28.25611181]
[1673388464470,2.79116503,1338.9,1338.7,28.2537979]
[1673388465189,2.79116503,1338.9,1338.7,25.47329077]
[1673388465611,2.79116503,1338.9,1338.7,25.47100157]
[1673388466463,2.79116503,1338.9,1338.7,25.46871237]
[1673388467451,2.79116503,1338.9,1338.7,22.47558]
[1673388467603,2.79116503,1338.9,1338.7,22.4732908]
[1673388468562,2.79116503,1338.9,1338.7,22.4710016]
[1673388469395,2.79116503,1338.9,1338.7,22.4687124]
[1673388470266,1.1164333,1338.9,1338.7,22.4687124]
[1673388470599,1.1164333,1338.9,1338.7,22.4664232]
[1673388471188,2.79116503,1338.9,1338.7,22.4664232]
[1673388471517,1.1164333,1338.9,1338.7,22.46413401]
[1673388472339,2.79116503,1338.9,1338.7,22.46413401]
[1673388472685,2.79116503,1338.9,1338.7,22.46184482]
[1673388473103,1.1164333,1338.9,1338.7,22.46184482]
[1673388473506,1.1164333,1338.9,1338.7,22.45955548]
[1673388474438,1.1164333,1338.9,1338.7,22.45726614]
[1673388475383,1.1164333,1338.9,1338.7,22.4549768]
[1673388476575,1.1164333,1338.9,1338.7,22.4526879]
[1673388477490,1.1164333,1338.9,1338.7,25.23080184]
[1673388477702,15.48266794,1339.0,1338.7,25.23080184]
[1673388477907,17.92041307,1339.0,1338.7,25.23080184]
[1673388478168,1.1164333,1338.9,1338.7,25.23080184]
[1673388478487,1.1164333,1338.9,1338.7,25.22851294]
[1673388479665,1.1164333,1338.9,1338.7,25.22622404]
[1673388480478,1.1164333,1338.9,1338.7,22.4435323]
[1673388480691,6.90316794,1339.0,1338.9,2.5]
[1673388480919,6.90316794,1339.0,1338.9,30.38009064]
[1673388480920,4.05800291,1339.0,1338.9,30.38009064]
[1673388481076,4.04600291,1339.0,1338.9,30.44609064]
[1673388481287,4.04600291,1339.0,1338.9,34.51670313]
[1673388481482,4.04600291,1339.0,1338.9,36.36775866]
[1673388482012,4.04600291,1339.0,1338.9,40.32502562]
[1673388482221,4.04600291,1339.0,1338.9,36.36775866]
[1673388484733,0.95716666,1339.0,1338.9,36.36775866]
[1673388486046,0.95716666,1339.0,1338.9,33.87004756]
[1673388487004,0.95716666,1339.0,1338.9,33.87004891]
[1673388487533,0.95716666,1339.0,1338.9,33.87004684]
[1673388488838,0.95716666,1339.0,1338.9,32.19404684]
[1673388489263,0.95716666,1339.0,1338.9,30.34070313]
[1673388494451,6.66e-06,1339.0,1338.9,34.28930755]
[1673388494612,6.66e-06,1339.0,1338.9,43.04057682]
[1673388495295,6.66e-06,1339.0,1338.9,41.9224926]
[1673388495451,6.66e-06,1339.0,1338.9,43.04057682]
[1673388496434,6.66e-06,1339.0,1338.9,41.9224926]
[1673388496872,6.66e-06,1339.0,1338.9,43.04057682]
[1673388497394,6.66e-06,1339.0,1338.9,41.9224926]
[1673388497767,6.66e-06,1339.0,1338.9,43.04057682]
[1673388498192,6.66e-06,1339.0,1338.9,41.9224926]
[1673388502385,6.66e-06,1339.0,1338.9,42.1524926]
[1673388502595,6.66e-06,1339.0,1338.9,43.27057682]
[1673388504708,0.03429197,1339.2,1339.1,2.79899334]
[1673388504939,0.03429197,1339.2,1339.1,39.99735331]
[1673388505266,0.03429197,1339.2,1339.1,40.06335331]
[1673388511629,0.03429197,1339.2,1339.1,40.06135997]
[1673388512258,0.03429197,1339.2,1339.1,45.85274977]
[1673388512468,0.03429197,1339.2,1339.1,48.63212159]
[1673388512680,0.04436935,1339.3,1339.1,48.63212159]
[1673388512922,0.03036935,1339.3,1339.2,35.30217284]
[1673388513152,0.03036935,1339.3,1339.2,43.00006952]
[1673388513366,9.35e-06,1339.3,1339.2,43.00006952]
[1673388514405,9.35e-06,1339.3,1339.2,38.36817284]
[1673388515537,9.35e-06,1339.3,1339.2,40.22095888]
[1673388516088,9.35e-06,1339.3,1339.2,43.00013994]
[1673388516304,9.35e-06,1339.3,1339.2,40.22095888]
[1673388517039,9.35e-06,1339.3,1339.2,43.23007232]
[1673388517245,9.35e-06,1339.3,1339.2,43.23010036]
[1673388518981,0.03036935,1339.4,1339.2,43.23010036]
[1673388519197,9.04350776,1339.5,1339.3,22.1908283]
[1673388519408,9.04350776,1339.5,1339.4,33.66174064]
[1673388519617,0.61270776,1339.5,1339.4,37.66619902]
[1673388519860,0.59870776,1339.5,1339.4,33.72774064]
[1673388520682,0.03850776,1339.5,1339.4,37.89619902]
[1673388520893,0.03850776,1339.5,1339.4,42.36811993]
[1673388521297,7.76e-06,1339.5,1339.4,42.36811993]
[1673388522711,0.02914041,1339.6,1339.5,24.89641]
[1673388522712,8.17e-06,1339.6,1339.5,24.89641]
[1673388522900,8.17e-06,1339.6,1339.5,32.92852902]
[1673388524702,0.59632147,1339.8,1339.7,8.17e-06]
[1673388524920,0.59632147,1339.8,1339.7,33.65506881]
[1673388525234,0.59632147,1339.8,1339.7,37.09984815]
[1673388525421,0.03622147,1339.8,1339.7,37.09984815]
[1673388525632,0.03622147,1339.8,1339.7,40.09984815]
[1673388526477,0.03822147,1339.8,1339.7,40.09784815]
[1673388526688,0.03622147,1339.8,1339.7,40.09984815]
[1673388527716,0.03622147,1339.8,1339.7,40.32984815]
[1673388527926,0.03622147,1339.8,1339.7,44.26830653]
[1673388536411,0.06249849,1339.9,1339.8,2.5]
[1673388536638,0.06249849,1339.9,1339.8,37.18052906]
[1673388536945,0.06249849,1339.9,1339.8,37.24652906]
[1673388537104,0.06249849,1339.9,1339.8,33.30807068]
[1673388538524,0.06249849,1339.9,1339.8,37.24652906]
[1673388539337,3.06249849,1340.0,1339.8,37.24652906]
[1673388539686,3.06249849,1340.0,1339.9,29.91203355]
[1673388539848,3.06249849,1340.0,1339.9,29.97803355]
[1673388540270,3.40749849,1340.0,1339.9,29.97803355]
[1673388540527,3.40749849,1340.0,1339.9,31.86503355]
[1673388540846,3.40749849,1340.0,1339.9,20.67714064]
[1673388541152,3.40749849,1340.0,1339.9,13.21390064]
[1673388542053,3.40749849,1340.0,1339.9,20.67714064]
[1673388542263,3.40749849,1340.0,1339.9,28.14038064]
[1673388542923,3.40749849,1340.0,1339.9,20.67714064]
[1673388543688,7.63990218,1340.0,1339.9,1.953]
[1673388543899,7.63990218,1340.0,1339.9,0.943]
[1673388543900,23.13426235,1340.0,1339.9,0.943]
[1673388544097,22.02366521,1340.0,1339.9,0.943]
[1673388544266,23.13421484,1340.0,1339.9,0.90567]
[1673388544483,23.13421484,1340.0,1339.9,0.049]
[1673388544484,14.56098521,1340.0,1339.9,0.049]
[1673388544807,7.8083,1339.9,1339.7,8.17e-06]
[1673388545021,1.12583,1339.8,1339.7,8.17e-06]
[1673388545420,2.62583,1339.8,1339.7,8.17e-06]
[1673388545633,11.7605342,1339.8,1339.7,8.17e-06]
[1673388545889,21.5402342,1339.8,1339.7,8.17e-06]
[1673388546109,12.5764342,1339.8,1339.7,8.17e-06]
[1673388546321,10.6848,1339.8,1339.7,8.17e-06]
[1673388546794,0.9191,1339.8,1339.7,8.17e-06]
[1673388547011,0.9051,1339.8,1339.7,8.17e-06]
[1673388548936,2.0159042,1339.8,1339.7,8.17e-06]
[1673388550259,18.6093999,1339.8,1339.7,8.17e-06]
[1673388550470,15.10571232,1339.8,1339.7,8.17e-06]
[1673388550684,7.64191232,1339.8,1339.7,8.17e-06]
[1673388551098,6.53110812,1339.8,1339.7,8.17e-06]
[1673388552513,8.75230239,1339.8,1339.7,8.17e-06]
[1673388554031,6.53110812,1339.8,1339.7,8.17e-06]
[1673388554245,8.75230239,1339.8,1339.7,8.17e-06]
[1673388554456,16.21610239,1339.8,1339.7,8.17e-06]
[1673388555297,8.75230239,1339.8,1339.7,8.17e-06]
[1673388558189,8.19220239,1339.8,1339.7,8.17e-06]
[1673388561029,15.65600239,1339.8,1339.7,8.17e-06]
[1673388561917,21.45390669,1339.8,1339.7,8.17e-06]
[1673388564175,28.91770669,1339.8,1339.7,8.17e-06]
[1673388564539,31.69919936,1339.8,1339.7,8.17e-06]
[1673388564751,24.23539936,1339.8,1339.7,8.17e-06]
[1673388565020,24.79549936,1339.8,1339.7,8.17e-06]
[1673388565499,22.01400669,1339.8,1339.7,8.17e-06]
[1673388566169,24.79549936,1339.8,1339.7,8.17e-06]
[1673388566522,16.2196248,1339.8,1339.7,8.17e-06]
[1673388568319,23.6834248,1339.8,1339.7,8.17e-06]
[1673388568958,2.84818921,1339.7,1339.6,0.00199183]
[1673388569320,6.57979338,1339.7,1339.6,0.00199183]
[1673388569477,6.59379338,1339.7,1339.6,0.00199183]
[1673388570587,8.26321149,1339.7,1339.6,0.00199183]
[1673388571142,15.72756149,1339.7,1339.6,0.00199183]
[1673388571686,14.05814338,1339.7,1339.6,0.00199183]
[1673388573283,15.72756149,1339.7,1339.6,0.00199183]
[1673388574119,14.05814338,1339.7,1339.6,0.00199183]
[1673388575311,15.72756149,1339.7,1339.6,0.00199183]
[1673388576123,23.19191149,1339.7,1339.6,0.00199183]
[1673388576349,22.07896872,1339.7,1339.6,0.00199183]
[1673388576990,23.19290664,1339.7,1339.6,0.00199183]
[1673388578022,22.07896872,1339.7,1339.6,0.00199183]
[1673388579199,24.30016299,1339.7,1339.6,0.00199183]
[1673388579514,22.07896872,1339.7,1339.6,0.00199183]
[1673388579726,24.30016299,1339.7,1339.6,0.00199183]
[1673388580325,25.41223755,1339.7,1339.6,0.00199183]
[1673388580732,23.19104328,1339.7,1339.6,0.00199183]
[1673388582230,30.65539328,1339.7,1339.6,0.00199183]
[1673388582829,31.22192836,1339.7,1339.6,0.00199183]
[1673388583039,31.78202836,1339.7,1339.6,0.00199183]
[1673388583505,40.28982836,1339.7,1339.6,0.00199183]
[1673388583725,14.54875061,1339.7,1339.6,0.00199183]
[1673388583988,40.84552265,1339.7,1339.6,0.00199183]
[1673388584629,36.94180061,1339.7,1339.6,0.00199183]
[1673388586292,36.97876845,1339.7,1339.6,0.00199183]
[1673388587210,40.32508217,1339.7,1339.6,0.00199183]
[1673388589575,2.84646373,1339.6,1339.2,3.10545923]
[1673388589784,3.13320115,1339.4,1339.2,0.10545923]
[1673388590516,1.46028046,1339.3,1339.2,0.10545923]
[1673388591293,0.345,1339.3,1339.2,0.10545923]
[1673388591658,2.78820115,1339.4,1339.2,0.10545923]
[1673388591993,2.78820115,1339.4,1339.2,0.86936215]
[1673388592401,2.78820115,1339.4,1339.2,8.33642215]
[1673388592763,2.78820115,1339.4,1339.2,8.40242215]
[1673388593982,2.78820115,1339.4,1339.2,0.93536215]
[1673388594223,2.78820115,1339.4,1339.2,0.86936215]
[1673388594407,2.78820115,1339.4,1339.2,15.80363215]
[1673388594629,2.78820115,1339.4,1339.2,15.86963215]
[1673388595697,1.11528046,1339.4,1339.2,15.86963215]
[1673388597376,1.11528046,1339.4,1339.2,0.93536215]
[1673388597626,1.11528046,1339.4,1339.2,15.03963923]
[1673388597817,1.11528046,1339.4,1339.2,15.10563923]
[1673388598321,1.11528046,1339.4,1339.2,22.57277923]
[1673388607410,2.85420115,1339.5,1339.2,30.26813005]
[1673388607577,2.78820115,1339.5,1339.2,37.73527005]
[1673388607784,2.78820115,1339.5,1339.3,3.77352701]
[1673388608001,1.11528046,1339.5,1339.3,18.70611701]
[1673388608211,1.11528046,1339.5,1339.3,18.77211701]
[1673388609138,1.11528046,1339.5,1339.3,26.23869701]
[1673388611396,2.78820115,1339.5,1339.3,26.23869701]
[1673388613892,1.11528046,1339.5,1339.3,26.23869701]
[1673388614091,2.78820115,1339.5,1339.3,18.77211701]
[1673388614821,2.78820115,1339.5,1339.3,3.83952701]
[1673388615030,2.78820115,1339.5,1339.3,3.77352701]
[1673388616392,2.78820115,1339.5,1339.3,11.23999701]
[1673388616723,2.78820115,1339.5,1339.3,11.30599701]
[1673388617292,1.11528046,1339.4,1339.3,11.30599701]
[1673388622762,1.18128046,1339.5,1339.3,39.40551707]
[1673388623082,1.11528046,1339.6,1339.4,15.72219222]
[1673388623391,2.85420115,1339.7,1339.5,26.19759438]
[1673388623604,1.11528046,1339.7,1339.6,25.01448944]
[1673388623762,1.11528046,1339.7,1339.6,25.08048944]
[1673388624964,1.11528046,1339.7,1339.6,14.99582]
[1673388624965,1.67292069,1339.7,1339.6,14.99582]
[1673388625285,1.67292069,1339.7,1339.6,0.066]
[1673388625492,1.67292069,1339.7,1339.5,26.26336438]
[1673388625671,1.11554256,1339.6,1339.5,26.26336438]
[1673388626437,1.11554256,1339.6,1339.5,18.79789438]
[1673388626631,1.11554256,1339.6,1339.5,22.31762786]
[1673388627245,2.78846325,1339.7,1339.5,22.31762786]
[1673388629356,1.11554256,1339.7,1339.5,29.77967631]
[1673388632280,2.85446325,1339.8,1339.6,3.79766064]
[1673388632509,2.85446325,1339.8,1339.7,22.77281606]
[1673388632510,1.11554256,1339.8,1339.7,22.77281606]
[1673388632815,12.23846325,1339.9,1339.7,22.83881606]
[1673388633046,12.18646325,1339.9,1339.7,22.83881606]
[1673388633259,10.51354256,1339.9,1339.7,22.83881606]
[1673388633957,12.18646325,1339.9,1339.7,22.83881606]
[1673388634387,12.18646325,1339.9,1339.7,15.37446606]
[1673388635133,10.51354256,1339.9,1339.7,15.37446606]
[1673388638347,1.12954256,1339.9,1339.8,3.79766064]
[1673388638537,1.11554256,1339.9,1339.8,26.18906064]
[1673388638686,1.11554256,1339.9,1339.8,26.25506064]
[1673388639137,6.47696174,1340.0,1339.8,26.25506064]
[1673388639353,6.42496174,1340.0,1339.8,26.25506064]
[1673388641260,4.75204105,1340.0,1339.8,26.25506064]
[1673388641419,4.73804105,1340.0,1339.8,26.25506064]
[1673388643254,3.62249849,1340.0,1339.8,26.25506064]
[1673388643414,3.62249849,1340.0,1339.8,29.66497831]
[1673388644889,3.62249849,1340.0,1339.9,26.18738064]
[1673388645094,3.06249849,1340.0,1339.9,26.25338064]
[1673388647351,3.06249849,1340.0,1339.9,18.79014064]
[1673388647735,3.06249849,1340.0,1339.9,26.25338064]
[1673388651554,5.55850469,1340.0,1339.9,0.066]
[1673388651772,17.01732306,1340.0,1339.6,7.46451]
[1673388651972,17.01732306,1340.0,1339.6,0.066]
[1673388651973,3.34207382,1339.9,1339.6,0.066]
[1673388652183,3.34207382,1339.9,1339.5,24.72438219]
[1673388652393,19.78483382,1339.9,1339.5,28.52204283]
[1673388652619,24.92083851,1339.9,1339.5,28.52204283]
[1673388653210,12.74597382,1339.8,1339.5,0.06610219]
[1673388653419,12.74597382,1339.8,1339.5,0.00010219]
[1673388653420,1.11282953,1339.7,1339.5,0.00010219]
[1673388653888,1.11282953,1339.7,1339.4,8.64716045]
[1673388653889,0.00253808,1339.5,1339.4,8.64716045]
[1673388654094,0.00253808,1339.5,1339.4,1.18128045]
[1673388654318,7.57954484,1339.5,1339.4,1.11528045]
[1673388654524,7.59354484,1339.5,1339.4,1.11528045]
[1673388655147,0.12807484,1339.5,1339.4,1.11528045]
[1673388655361,0.11407484,1339.5,1339.4,1.11528045]
[1673388656608,10.00306784,1339.4,1339.2,0.10545923]
[1673388656819,1.00030678,1339.3,1339.2,0.10545923]
[1673388657976,2.53696784,1339.4,1339.2,0.10545923]
[1673388659009,10.00309784,1339.4,1339.2,0.10545923]
[1673388659223,10.01709784,1339.4,1339.2,0.10545923]
[1673388659654,2.55096784,1339.4,1339.2,0.10545923]
[1673388659852,2.53696784,1339.4,1339.2,0.10545923]
[1673388660042,0.25369678,1339.3,1339.2,0.10545923]
[1673388660459,0.03696784,1339.4,1339.2,22.50687923]
[1673388660780,0.03696784,1339.4,1339.2,22.57287923]
[1673388661880,0.03696784,1339.4,1339.2,7.63859923]
[1673388662249,0.03696784,1339.4,1339.2,0.17145923]
[1673388662500,3.46592606,1339.4,1339.2,0.10545923]
[1673388663102,10.93203606,1339.4,1339.2,0.10545923]
[1673388663325,25.88016606,1339.4,1339.2,0.10545923]
[1673388663656,0.5603,1339.3,1339.2,0.10545923]
[1673388663824,15.49346,1339.3,1339.2,0.10545923]
[1673388664038,18.26588356,1339.3,1339.2,0.10545923]
[1673388664356,30.73466843,1339.3,1339.2,0.10545923]
[1673388664583,34.53232907,1339.3,1339.2,0.10545923]
[1673388664794,30.64295373,1339.3,1339.2,0.10545923]
[1673388665131,23.17637373,1339.3,1339.2,0.10545923]
[1673388665347,23.17837373,1339.3,1339.2,0.10545923]
[1673388665716,22.0655442,1339.3,1339.2,0.10545923]
[1673388666290,14.9354,1339.1,1339.0,0.11421731]
[1673388666503,16.69094,1339.1,1339.0,0.11421731]
[1673388666872,9.22324,1339.1,1339.0,0.11421731]
[1673388667743,1.75554,1339.1,1339.0,0.11421731]
[1673388667956,8.2617,1339.2,1339.0,15.05071731]
[1673388668173,0.014,1339.2,1339.0,7.64846731]
[1673388668528,18.38833105,1339.3,1339.0,0.18021731]
[1673388668715,33.32224105,1339.3,1339.0,0.11421731]
[1673388669081,18.38833105,1339.3,1339.0,0.11421731]
[1673388669324,1.83883311,1339.2,1339.0,0.11421731]
[1673388669921,3.83883311,1339.2,1339.0,0.11421731]
[1673388670280,1.83883311,1339.2,1339.0,0.11421731]
[1673388670501,1.83883311,1339.2,1339.0,7.58242731]
[1673388670659,16.21711041,1339.3,1339.0,7.64842731]
[1673388670869,7.12381041,1339.3,1339.0,7.64842731]
[1673388671338,14.59040041,1339.3,1339.0,7.64842731]
[1673388671493,14.59040041,1339.3,1339.0,0.18021731]
[1673388671704,1.45904004,1339.2,1339.0,0.11421731]
[1673388679319,1.45904004,1339.2,1339.0,7.58242731]
[1673388679487,14.64241041,1339.3,1339.0,7.64842731]
[1673388679696,14.59041041,1339.3,1339.0,7.64842731]
[1673388680343,7.12381041,1339.3,1339.0,15.11667731]
[1673388680574,7.12381041,1339.3,1339.0,22.58492731]
[1673388680763,6.3716914,1339.3,1339.0,22.58492731]
[1673388682565,6.3716914,1339.3,1339.0,15.11667731]
[1673388683048,3.3716914,1339.3,1339.0,15.11667731]
[1673388683262,3.3576914,1339.3,1339.0,15.11667731]
[1673388683713,0.03696784,1339.3,1339.0,15.11667731]
[1673388683935,0.59726784,1339.3,1339.0,15.11667731]
[1673388684472,0.03696784,1339.3,1339.0,15.11667731]
[1673388687197,0.03696784,1339.3,1339.0,15.11462235]
[1673388688429,0.03396971,1339.3,1339.0,15.11462235]
[1673388688636,2.53396971,1339.3,1339.0,15.11462235]
[1673388689918,0.03396971,1339.3,1339.0,15.11462235]
[1673388690306,2.03396971,1339.3,1339.0,15.11462235]
[1673388690977,0.03396971,1339.3,1339.0,22.58287235]
[1673388691196,0.03396971,1339.3,1339.0,15.11462235]
[1673388691197,1.14679924,1339.3,1339.0,15.11462235]
[1673388693182,2.81604353,1339.3,1339.0,15.11462235]
[1673388693564,3.56816254,1339.3,1339.0,15.11462235]
[1673388694202,1.89891825,1339.3,1339.0,15.11462235]
[1673388694764,1.11282953,1339.2,1339.0,0.17816235]
[1673388695041,1.11282953,1339.2,1339.0,0.11216235]
[1673388695368,1.11282953,1339.2,1339.0,15.04861235]
[1673388695578,1.11282953,1339.2,1339.0,15.11461235]
[1673388696892,1.11282953,1339.2,1339.0,17.89439201]
[1673388697212,1.11282953,1339.2,1339.0,7.64636235]
[1673388699305,2.78207382,1339.2,1339.0,15.11461235]
[1673388699484,2.78207382,1339.2,1339.0,7.64636235]
[1673388700673,2.78207382,1339.2,1339.0,0.17816235]
[1673388700895,4.11523517,1339.2,1339.0,0.11216235]
[1673388703144,3.00240564,1339.2,1339.0,0.11216235]
[1673388703356,1.11584507,1339.1,1339.0,0.11216235]
[1673388703615,20.22048007,1339.1,1339.0,0.11216235]
[1673388703819,17.73248007,1339.1,1339.0,0.11216235]
[1673388704141,13.22178121,1339.1,1339.0,0.11216235]
[1673388704358,5.29708007,1339.1,1339.0,0.11216235]
[1673388705194,2.79708007,1339.1,1339.0,0.11216235]
[1673388705356,2.78508007,1339.1,1339.0,0.11216235]
[1673388709657,1.11583578,1339.1,1339.0,0.11216235]
[1673388710347,2.78508007,1339.1,1339.0,0.10887705]
[1673388710511,1.83252792,1339.1,1339.0,0.10887705]
[1673388712195,1.11583578,1339.1,1339.0,7.57712705]
[1673388712519,3.53716021,1339.2,1339.1,1.11195963]
[1673388712733,2.7850412,1339.2,1339.1,1.11195963]
[1673388712942,11.36694522,1339.2,1339.1,1.11195963]
[1673388713291,2.24256093,1339.2,1339.1,1.11195963]
[1673388713496,4.61705001,1339.2,1339.1,1.11195963]
[1673388714237,2.23056093,1339.2,1339.1,1.11195963]
[1673388714820,2.98267994,1339.2,1339.1,1.11195963]
[1673388715034,3.54297994,1339.2,1339.1,1.11195963]
[1673388715445,2.98267994,1339.2,1339.1,1.11195963]
[1673388716548,10.44981994,1339.2,1339.1,1.11195963]
[1673388716705,13.59499802,1339.2,1339.1,1.11195963]